fUST/lending_fUST_20240802
["ID","MTS","AMOUNT","RATE_DAILY","PERIOD"]
[333872359,1722585053285,-500.0,0.0001452,2]
[333872361,1722585053295,-500.0,0.0001452,2]
[333872363,1722585053305,-524.0,0.0001452,2]
[333872365,1722585053314,-500.0,0.0001452,2]
[333872367,1722585053324,-500.0,0.0001452,2]
[333872369,1722585053334,-580.32,0.0001452,2]
[333872371,1722585053344,-500.0,0.0001452,2]
[333872373,1722585053354,-283.14,0.0001452,2]
[333872375,1722585053364,-500.0,0.0001452,2]
[333872377,1722585053374,-500.0,0.0001452,2]
[333872379,1722585053383,-420.0,0.00014562,2]
[333872381,1722585053393,-153.1107178,0.00014603,2]
[333872383,1722585053402,-151.0,0.00014679,2]
[333872385,1722585053412,-151.0,0.00014679,2]
[333872387,1722585053422,-151.0,0.00014679,2]
[333872389,1722585053431,-151.0,0.00014679,2]
[333872391,1722585053440,-2812.83,0.00014679,2]
[333872393,1722585053450,-2812.83,0.00014679,2]
[333872395,1722585053460,-2812.83,0.00014689,2]
[333872397,1722585053469,-2812.83,0.00014689,2]
[333872398,1722585053479,-2812.83,0.00014689,2]
[333872399,1722585053494,-2812.83,0.00014689,2]
[333872400,1722585053503,-2812.91435308,0.00014689,2]
[333872401,1722585053514,-2094.90863795,0.0001469,2]
[333872402,1722585053523,-527.12854331,0.0001469,2]
[333872403,1722585053534,-261.1733593,0.0001469,2]
[333872404,1722585053544,-373.3966575,0.0001469,2]
[333872405,1722585053554,-154.68290005,0.0001469,2]
[333872406,1722585053567,-473.93064752,0.0001469,2]
[333872407,1722585053577,-1566.45502666,0.0001469,2]
[333872408,1722585053586,-550.042498,0.0001469,2]
[333872409,1722585053595,-335.6564105,0.0001469,2]
[333872410,1722585053605,-30000.0,0.0001469,2]
[333872411,1722585053615,-238.824813,0.0001469,2]
[333872413,1722585053625,-151.0,0.00014794,2]
[333872415,1722585053635,-230.199283,0.00014794,2]
[333872417,1722585053644,-500.0,0.00014794,2]
[333872419,1722585053654,-223.97,0.00014794,2]
[333872421,1722585053664,-500.0,0.00014794,2]
[333872423,1722585053673,-798.59,0.00014794,2]
[333872425,1722585053683,-500.0,0.00014794,2]
[333872427,1722585053693,-500.0,0.00014794,2]
[333872429,1722585053703,-500.0,0.00014794,2]
[333872431,1722585053713,-815.89,0.00014794,2]
[333872433,1722585053723,-500.0,0.00014794,2]
[333872435,1722585053734,-500.0,0.00014794,2]
[333872437,1722585053744,-500.0,0.00014794,2]
[333872439,1722585053754,-500.0,0.00014794,2]
[333872441,1722585053764,-500.0,0.00014794,2]
[333872443,1722585053774,-198.02,0.00014794,2]
[333872445,1722585053785,-500.0,0.00014794,2]
[333872447,1722585053794,-500.0,0.00014794,2]
[333872449,1722585053803,-500.0,0.00014794,2]
[333872451,1722585053812,-500.0,0.00014794,2]
[333872453,1722585053822,-500.0,0.00014794,2]
[333872455,1722585053831,-500.0,0.00014794,2]
[333872457,1722585053840,-640.39,0.00014794,2]
[333872458,1722585053849,-500.0,0.00014794,2]
[333872460,1722585053858,-500.0,0.00014794,2]
[333872462,1722585053867,-500.0,0.00014794,2]
[333872464,1722585053876,-500.0,0.00014794,2]
[333872466,1722585053886,-703.69,0.00014794,2]
[333872468,1722585053895,-2404.32,0.00014794,2]
[333872470,1722585053904,-1666.72,0.00014794,2]
[333872472,1722585053913,-634.17,0.00014794,2]
[333872483,1722585054003,-500.0,0.00014794,2]
[333872485,1722585054013,-961.99,0.00014794,2]
[333872487,1722585054022,-500.0,0.00014794,2]
[333872489,1722585054033,-247.62603104,0.00014794,2]
[333872491,1722585054042,-500.0,0.00014794,2]
[333872493,1722585054052,-500.0,0.00014794,2]
[333872495,1722585054061,-2229.48,0.00014794,2]
[333872497,1722585054071,-423.37282897,0.00014794,2]
[333872499,1722585054080,-500.0,0.00014794,2]
[333872501,1722585054091,-500.0,0.00014794,2]
[333872503,1722585054101,-500.0,0.00014794,2]
[333872505,1722585054111,-500.0,0.00014794,2]
[333872507,1722585054121,-500.0,0.00014794,2]
[333872509,1722585054131,-500.0,0.00014794,2]
[333872511,1722585054141,-500.0,0.00014794,2]
[333872513,1722585054151,-500.0,0.00014794,2]
[333872515,1722585054161,-1022.73,0.00014794,2]
[333872517,1722585054170,-500.0,0.00014794,2]
[333872519,1722585054180,-500.0,0.00014794,2]
[333872521,1722585054191,-1981.06,0.00014794,2]
[333872523,1722585054202,-228.09513392,0.00014794,2]
[333872525,1722585054212,-500.0,0.00014794,2]
[333872527,1722585054222,-500.0,0.00014794,2]
[333872529,1722585054231,-500.0,0.00014794,2]
[333872531,1722585054242,-1034.51,0.00014794,2]
[333872533,1722585054251,-640.85,0.00014794,2]
[333872535,1722585054260,-500.0,0.00014794,2]
[333872537,1722585054269,-500.0,0.00014794,2]
[333872539,1722585054279,-500.0,0.00014794,2]
[333872541,1722585054289,-524.78,0.00014794,2]
[333872543,1722585054298,-500.0,0.00014794,2]
[333872545,1722585054308,-500.0,0.00014794,2]
[333872547,1722585054318,-500.0,0.00014794,2]
[333872549,1722585054328,-500.0,0.00014794,2]
[333872551,1722585054338,-500.0,0.00014794,2]
[333872553,1722585054348,-500.0,0.00014794,2]
[333872555,1722585054358,-594.66,0.00014794,2]
[333872557,1722585054368,-500.0,0.00014794,2]
[333872559,1722585054377,-500.0,0.00014794,2]
[333872561,1722585054387,-500.0,0.00014794,2]
[333872563,1722585054396,-500.0,0.00014794,2]
[333872565,1722585054406,-524.0,0.00014794,2]
[333872567,1722585054416,-500.0,0.00014794,2]
[333872569,1722585054426,-500.0,0.00014794,2]
[333872571,1722585054436,-580.32,0.00014794,2]
[333872573,1722585054446,-500.0,0.00014794,2]
[333872575,1722585054459,-500.0,0.00014794,2]
[333872577,1722585054469,-150.112233,0.000148,2]
[333872579,1722585054478,-153.0,0.00014832,2]
[333872581,1722585054491,-153.0,0.00014832,2]
[333872583,1722585054502,-294.1746601,0.00014832,2]
[333872585,1722585054514,-294.1746601,0.00014832,2]
[333872587,1722585054524,-153.0,0.00014832,2]
[333872589,1722585054534,-294.1746601,0.00014832,2]
[333872591,1722585054543,-153.8795636,0.00014832,2]
[333872593,1722585054553,-587.6077016,0.00014832,2]
[333872595,1722585054565,-1000.0,0.00015,15]
[333872597,1722585054574,-2847.71475529,0.00015,2]
[333872599,1722585054588,-7970.26785512,0.00015,2]
[333872600,1722585054599,-1826.51596998,0.00015,2]
[333872601,1722585054610,-1108.66979121,0.00015,2]
[333872602,1722585054619,-218.36080882,0.00015,2]
[333872603,1722585054628,-314.82378564,0.00015,2]
[333872604,1722585054638,-302.45563732,0.00015,2]
[333872605,1722585054647,-151.0,0.00015068,2]
[333872606,1722585054656,-500.0,0.00015068,2]
[333872607,1722585054665,-500.0,0.00015068,2]
[333872608,1722585054674,-798.59,0.00015068,2]
[333872609,1722585054683,-500.0,0.00015068,2]
[333872610,1722585054692,-500.0,0.00015068,2]
[333872611,1722585054702,-500.0,0.00015068,2]
[333872612,1722585054711,-815.89,0.00015068,2]
[333872613,1722585054721,-500.0,0.00015068,2]
[333872614,1722585054730,-500.0,0.00015068,2]
[333872615,1722585054739,-500.0,0.00015068,2]
[333872616,1722585054748,-500.0,0.00015068,2]
[333872617,1722585054757,-500.0,0.00015068,2]
[333872618,1722585054766,-500.0,0.00015068,2]
[333872619,1722585054775,-500.0,0.00015068,2]
[333872620,1722585054785,-500.0,0.00015068,2]
[333872621,1722585054795,-500.0,0.00015068,2]
[333872622,1722585054807,-500.0,0.00015068,2]
[333872623,1722585054816,-640.39,0.00015068,2]
[333872624,1722585054826,-481.33,0.00015068,2]
[333872625,1722585054835,-500.0,0.00015068,2]
[333872626,1722585054844,-500.0,0.00015068,2]
[333872627,1722585054853,-500.0,0.00015068,2]
[333872628,1722585054862,-703.69,0.00015068,2]
[333872629,1722585054871,-2404.32,0.00015068,2]
[333872630,1722585054881,-1666.72,0.00015068,2]
[333872631,1722585054890,-500.0,0.00015068,2]
[333872632,1722585054899,-634.17,0.00015068,2]
[333872633,1722585054908,-961.99,0.00015068,2]
[333872634,1722585054918,-500.0,0.00015068,2]
[333872635,1722585054928,-500.0,0.00015068,2]
[333872636,1722585054937,-500.0,0.00015068,2]
[333872637,1722585054946,-2229.48,0.00015068,2]
[333872638,1722585054956,-500.0,0.00015068,2]
[333872639,1722585054965,-500.0,0.00015068,2]
[333872640,1722585054974,-500.0,0.00015068,2]
[333872641,1722585054984,-500.0,0.00015068,2]
[333872642,1722585054993,-500.0,0.00015068,2]
[333872643,1722585055004,-500.0,0.00015068,2]
[333872644,1722585055015,-500.0,0.00015068,2]
[333872645,1722585055026,-500.0,0.00015068,2]
[333872646,1722585055036,-1022.73,0.00015068,2]
[333872647,1722585055045,-500.0,0.00015068,2]
[333872648,1722585055055,-500.0,0.00015068,2]
[333872649,1722585055064,-1981.06,0.00015068,2]
[333872650,1722585055074,-500.0,0.00015068,2]
[333872651,1722585055083,-500.0,0.00015068,2]
[333872652,1722585055092,-500.0,0.00015068,2]
[333872653,1722585055102,-1034.51,0.00015068,2]
[333872654,1722585055111,-640.85,0.00015068,2]
[333872655,1722585055122,-500.0,0.00015068,2]
[333872656,1722585055131,-500.0,0.00015068,2]
[333872657,1722585055140,-500.0,0.00015068,2]
[333872658,1722585055149,-524.78,0.00015068,2]
[333872659,1722585055160,-500.0,0.00015068,2]
[333872660,1722585055169,-500.0,0.00015068,2]
[333872661,1722585055180,-500.0,0.00015068,2]
[333872662,1722585055189,-500.0,0.00015068,2]
[333872663,1722585055199,-500.0,0.00015068,2]
[333872664,1722585055211,-500.0,0.00015068,2]
[333872665,1722585055221,-594.66,0.00015068,2]
[333872666,1722585055232,-500.0,0.00015068,2]
[333872667,1722585055242,-500.0,0.00015068,2]
[333872668,1722585055252,-500.0,0.00015068,2]
[333872669,1722585055262,-500.0,0.00015068,2]
[333872670,1722585055272,-524.0,0.00015068,2]
[333872671,1722585055282,-500.0,0.00015068,2]
[333872672,1722585055292,-500.0,0.00015068,2]
[333872673,1722585055300,-580.32,0.00015068,2]
[333872674,1722585055309,-500.0,0.00015068,2]
[333872675,1722585055319,-500.0,0.00015068,2]
[333872676,1722585055328,-153.0,0.00015068,2]
[333872677,1722585055338,-413.816345,0.00015068,2]
[333872678,1722585055347,-588.3493202,0.00015068,2]
[333872679,1722585055357,-153.0,0.00015068,2]
[333872680,1722585055366,-153.0,0.00015151,2]
[333872681,1722585055375,-150.112233,0.000153,2]
[333872682,1722585055385,-151.0,0.00015342,2]
[333872683,1722585055394,-500.0,0.00015342,2]
[333872684,1722585055404,-500.0,0.00015342,2]
[333872685,1722585055413,-798.59,0.00015342,2]
[333872686,1722585055423,-500.0,0.00015342,2]
[333872687,1722585055433,-500.0,0.00015342,2]
[333872688,1722585055443,-500.0,0.00015342,2]
[333872689,1722585055452,-815.89,0.00015342,2]
[333872690,1722585055462,-500.0,0.00015342,2]
[333872691,1722585055472,-500.0,0.00015342,2]
[333872692,1722585055482,-500.0,0.00015342,2]
[333872693,1722585055497,-500.0,0.00015342,2]
[333872694,1722585055506,-500.0,0.00015342,2]
[333872695,1722585055516,-500.0,0.00015342,2]
[333872696,1722585055525,-500.0,0.00015342,2]
[333872697,1722585055538,-500.0,0.00015342,2]
[333872698,1722585055548,-500.0,0.00015342,2]
[333872699,1722585055558,-500.0,0.00015342,2]
[333872700,1722585055568,-640.39,0.00015342,2]
[333872701,1722585055578,-500.0,0.00015342,2]
[333872702,1722585055588,-500.0,0.00015342,2]
[333872703,1722585055598,-500.0,0.00015342,2]
[333872704,1722585055608,-703.69,0.00015342,2]
[333872705,1722585055618,-2404.32,0.00015342,2]
[333872706,1722585055629,-1666.72,0.00015342,2]
[333872707,1722585055638,-500.0,0.00015342,2]
[333872708,1722585055648,-634.17,0.00015342,2]
[333872709,1722585055657,-961.99,0.00015342,2]
[333872710,1722585055667,-500.0,0.00015342,2]
[333872711,1722585055676,-500.0,0.00015342,2]
[333872712,1722585055686,-500.0,0.00015342,2]
[333872713,1722585055695,-2229.48,0.00015342,2]
[333872714,1722585055704,-500.0,0.00015342,2]
[333872715,1722585055714,-382.1466431,0.00015342,2]
[333872716,1722585055723,-500.0,0.00015342,2]
[333872717,1722585055734,-500.0,0.00015342,2]
[333872718,1722585055746,-342.41987052,0.00015342,2]
[333872719,1722585055755,-500.0,0.00015342,2]
[333872720,1722585055765,-500.0,0.00015342,2]
[333872721,1722585055775,-500.0,0.00015342,2]
[333872722,1722585055788,-1022.73,0.00015342,2]
[333872723,1722585055799,-500.0,0.00015342,2]
[333872724,1722585055812,-500.0,0.00015342,2]
[333872725,1722585055822,-1981.06,0.00015342,2]
[333872726,1722585055834,-500.0,0.00015342,2]
[333872727,1722585055844,-422.31864677,0.00015342,2]
[333872728,1722585055855,-500.0,0.00015342,2]
[333872729,1722585055868,-1034.51,0.00015342,2]
[333872730,1722585055878,-640.85,0.00015342,2]
[333872731,1722585055888,-500.0,0.00015342,2]
[333872732,1722585055900,-500.0,0.00015342,2]
[333872733,1722585055911,-500.0,0.00015342,2]
[333872734,1722585055921,-524.78,0.00015342,2]
[333872735,1722585055931,-500.0,0.00015342,2]
[333872736,1722585055941,-500.0,0.00015342,2]
[333872737,1722585055950,-500.0,0.00015342,2]
[333872738,1722585055959,-500.0,0.00015342,2]
[333872739,1722585055968,-500.0,0.00015342,2]
[333872740,1722585055977,-500.0,0.00015342,2]
[333872741,1722585055987,-594.66,0.00015342,2]
[333872742,1722585055996,-500.0,0.00015342,2]
[333872743,1722585056005,-500.0,0.00015342,2]
[333872744,1722585056014,-500.0,0.00015342,2]
[333872745,1722585056023,-500.0,0.00015342,2]
[333872746,1722585056033,-524.0,0.00015342,2]
[333872747,1722585056042,-500.0,0.00015342,2]
[333872748,1722585056052,-534.8209211,0.00015342,2]
[333872749,1722585056062,-500.0,0.00015342,2]
[333872750,1722585056070,-500.0,0.00015342,2]
[333872751,1722585056080,-580.32,0.00015342,2]
[333872752,1722585056090,-400.0,0.00015342,2]
[333872753,1722585056099,-3200.0,0.00015464,2]
[333872754,1722585056108,-150.0,0.00015464,2]
[333872756,1722585056117,-500.0,0.00015616,2]
[333872757,1722585056126,-500.0,0.00015616,2]
[333872759,1722585056136,-798.59,0.00015616,2]
[333872761,1722585056145,-208.86,0.00015616,2]
[333872763,1722585056155,-500.0,0.00015616,2]
[333872765,1722585056164,-500.0,0.00015616,2]
[333872767,1722585056173,-815.89,0.00015616,2]
[333872769,1722585056183,-500.0,0.00015616,2]
[333872777,1722585056269,-500.0,0.00015616,2]
[333872779,1722585056280,-500.0,0.00015616,2]
[333872781,1722585056290,-304.87492799,0.00015616,2]
[333872783,1722585056299,-500.0,0.00015616,2]
[333872785,1722585056309,-500.0,0.00015616,2]
[333872787,1722585056318,-500.0,0.00015616,2]
[333872789,1722585056329,-500.0,0.00015616,2]
[333872791,1722585056339,-500.0,0.00015616,2]
[333872793,1722585056348,-500.0,0.00015616,2]
[333872795,1722585056358,-640.39,0.00015616,2]
[333872797,1722585056367,-500.0,0.00015616,2]
[333872799,1722585056377,-500.0,0.00015616,2]
[333872800,1722585056386,-500.0,0.00015616,2]
[333872803,1722585056396,-703.69,0.00015616,2]
[333872805,1722585056406,-2404.32,0.00015616,2]
[333872807,1722585056416,-1666.72,0.00015616,2]
[333872809,1722585056426,-500.0,0.00015616,2]
[333872811,1722585056435,-634.17,0.00015616,2]
[333872813,1722585056445,-961.99,0.00015616,2]
[333872815,1722585056455,-500.0,0.00015616,2]
[333872817,1722585056467,-500.0,0.00015616,2]
[333872819,1722585056477,-500.0,0.00015616,2]
[333872821,1722585056493,-2229.48,0.00015616,2]
[333872823,1722585056503,-500.0,0.00015616,2]
[333872825,1722585056514,-500.0,0.00015616,2]
[333872827,1722585056525,-500.0,0.00015616,2]
[333872829,1722585056537,-500.0,0.00015616,2]
[333872831,1722585056547,-500.0,0.00015616,2]
[333872833,1722585056556,-432.83712734,0.00015616,2]
[333872835,1722585056568,-1022.73,0.00015616,2]
[333872838,1722585056580,-500.0,0.00015616,2]
[333872839,1722585056590,-287.13435611,0.00015616,2]
[333872841,1722585056599,-1981.06,0.00015616,2]
[333872843,1722585056609,-265.68399383,0.00015616,2]
[333872845,1722585056618,-500.0,0.00015616,2]
[333872846,1722585056629,-1034.51,0.00015616,2]
[333872847,1722585056639,-640.85,0.00015616,2]
[333872848,1722585056650,-500.0,0.00015616,2]
[333872849,1722585056663,-500.0,0.00015616,2]
[333872850,1722585056675,-500.0,0.00015616,2]
[333872852,1722585056685,-524.78,0.00015616,2]
[333872854,1722585056695,-500.0,0.00015616,2]
[333872856,1722585056707,-500.0,0.00015616,2]
[333872858,1722585056716,-500.0,0.00015616,2]
[333872860,1722585056725,-269.7166038,0.00015616,2]
[333872862,1722585056735,-500.0,0.00015616,2]
[333872864,1722585056745,-500.0,0.00015616,2]
[333872866,1722585056755,-594.66,0.00015616,2]
[333872869,1722585056766,-500.0,0.00015616,2]
[333872871,1722585056776,-500.0,0.00015616,2]
[333872872,1722585056787,-500.0,0.00015616,2]
[333872874,1722585056797,-500.0,0.00015616,2]
[333872876,1722585056807,-524.0,0.00015616,2]
[333872879,1722585056818,-500.0,0.00015616,2]
[333872880,1722585056828,-500.0,0.00015616,2]
[333872883,1722585056839,-500.0,0.00015616,2]
[333872885,1722585056850,-580.32,0.00015616,2]
[333872887,1722585056860,-100000.0,0.00015707,2]
[333872889,1722585056871,-176.34670944,0.00015707,2]
[333872891,1722585056881,-3784.17069278,0.00015708,7]
[333872893,1722585056891,-44021.84768034,0.00015708,2]
[333872904,1722585056999,-295.69969,0.00013698,2]
[333872906,1722585057009,-215.4059532,0.00015708,2]
[333872909,1722585057021,-5926.73228998,0.00015708,2]
[333872911,1722585057033,-18817.89194981,0.00015708,2]
[333873365,1722586238708,-561.31,0.00010959,2]
[333873367,1722586238719,-160.709722,0.00012986,2]
[333873369,1722586238733,-200.0,0.00013598,2]
[333873371,1722586238745,-300.0,0.00013697,2]
[333873372,1722586238757,-500.0,0.00013697,2]
[333873374,1722586238767,-532.39,0.00013698,2]
[333873376,1722586238779,-500.0,0.00013698,2]
[333873378,1722586238789,-364.22530902,0.00013698,2]
[333873380,1722586238799,-500.0,0.00013698,2]
[333873382,1722586238809,-500.0,0.00013698,2]
[333873384,1722586238820,-500.0,0.00013698,2]
[333873386,1722586238830,-500.0,0.00013698,2]
[333873388,1722586238841,-500.0,0.00013698,2]
[333873389,1722586238852,-500.0,0.00013698,2]
[333873390,1722586238867,-500.0,0.00013698,2]
[333873391,1722586238878,-500.0,0.00013698,2]
[333873392,1722586238895,-500.0,0.00013698,2]
[333873393,1722586238906,-500.0,0.00013698,2]
[333873394,1722586238918,-577.92,0.00013698,2]
[333873395,1722586238930,-500.0,0.00013698,2]
[333873396,1722586238942,-500.0,0.00013698,2]
[333873397,1722586238955,-500.0,0.00013698,2]
[333873398,1722586238965,-500.0,0.00013698,2]
[333873399,1722586238976,-304.87492799,0.00013698,2]
[333873400,1722586238988,-500.0,0.00013698,2]
[333873401,1722586238999,-500.0,0.00013698,2]
[333873402,1722586239010,-500.0,0.00013698,2]
[333873403,1722586239021,-500.0,0.00013698,2]
[333873404,1722586239032,-500.0,0.00013698,2]
[333873405,1722586239044,-500.0,0.00013698,2]
[333873406,1722586239055,-500.0,0.00013698,2]
[333873407,1722586239066,-500.0,0.00013698,2]
[333873408,1722586239077,-500.0,0.00013698,2]
[333873409,1722586239089,-500.0,0.00013698,2]
[333873410,1722586239100,-500.0,0.00013698,2]
[333873411,1722586239113,-500.0,0.00013698,2]
[333873412,1722586239124,-500.0,0.00013698,2]
[333873413,1722586239137,-500.0,0.00013698,2]
[333873414,1722586239149,-500.0,0.00013698,2]
[333873415,1722586239160,-500.0,0.00013698,2]
[333873416,1722586239171,-500.0,0.00013698,2]
[333873417,1722586239181,-500.0,0.00013698,2]
[333873418,1722586239192,-500.0,0.00013698,2]
[333873419,1722586239203,-500.0,0.00013698,2]
[333873420,1722586239215,-500.0,0.00013698,2]
[333873421,1722586239227,-500.0,0.00013698,2]
[333873422,1722586239238,-187.58865467,0.00013698,2]
[333873423,1722586239249,-500.0,0.00013698,2]
[333873424,1722586239259,-500.0,0.00013698,2]
[333873425,1722586239270,-500.0,0.00013698,2]
[333873426,1722586239281,-500.0,0.00013698,2]
[333873427,1722586239294,-500.0,0.00013698,2]
[333873428,1722586239305,-500.0,0.00013698,2]
[333873429,1722586239317,-1703.06,0.00013698,2]
[333873430,1722586239329,-500.0,0.00013698,2]
[333873431,1722586239342,-500.0,0.00013698,2]
[333873432,1722586239354,-681.41,0.00013698,2]
[333873433,1722586239365,-500.0,0.00013698,2]
[333873434,1722586239482,-432.83712734,0.00013698,2]
[333873435,1722586239531,-500.0,0.00013698,2]
[333873436,1722586239540,-287.13435611,0.00013698,2]
[333873437,1722586239549,-422.31864677,0.00013698,2]
[333873438,1722586239558,-500.0,0.00013698,2]
[333873439,1722586239567,-500.0,0.00013698,2]
[333873440,1722586239587,-500.0,0.00013698,2]
[333873441,1722586239598,-500.0,0.00013698,2]
[333873442,1722586239609,-767.05,0.00013698,2]
[333873443,1722586239619,-500.0,0.00013698,2]
[333873444,1722586239629,-1485.79,0.00013698,2]
[333873445,1722586239643,-500.0,0.00013698,2]
[333873447,1722586239653,-500.0,0.00013698,2]
[333873448,1722586239664,-500.0,0.00013698,2]
[333873449,1722586239674,-500.0,0.00013698,2]
[333873450,1722586239685,-500.0,0.00013698,2]
[333873451,1722586239695,-775.88,0.00013698,2]
[333873452,1722586239706,-500.0,0.00013698,2]
[333873453,1722586239717,-500.0,0.00013698,2]
[333873454,1722586239727,-500.0,0.00013698,2]
[333873455,1722586239738,-500.0,0.00013698,2]
[333873456,1722586239748,-500.0,0.00013698,2]
[333873457,1722586239758,-500.0,0.00013698,2]
[333873458,1722586239769,-500.0,0.00013698,2]
[333873459,1722586239779,-500.0,0.00013698,2]
[333873460,1722586239789,-534.8209211,0.00013698,2]
[333873461,1722586239799,-500.0,0.00013698,2]
[333873462,1722586239809,-500.0,0.00013698,2]
[333873463,1722586239819,-500.0,0.00013698,2]
[333873464,1722586239829,-500.0,0.00013698,2]
[333873465,1722586239839,-500.0,0.00013698,2]
[333873466,1722586239848,-500.0,0.00013698,2]
[333873467,1722586239859,-500.0,0.00013698,2]
[333873468,1722586239872,-500.0,0.00013698,2]
[333873469,1722586239882,-1180.59,0.00013698,2]
[333873470,1722586239895,-500.0,0.00013698,2]
[333873471,1722586239907,-500.0,0.00013698,2]
[333873473,1722586239917,-500.0,0.00013698,2]
[333873475,1722586239927,-500.0,0.00013698,2]
[333873477,1722586239937,-500.0,0.00013698,2]
[333873479,1722586239947,-1672.11,0.00013698,2]
[333873481,1722586239960,-267.745156,0.00013699,2]
[333873483,1722586239970,-3000.0,0.00013699,2]
[333873485,1722586239980,-500.0,0.00013961,2]
[333873487,1722586239990,-500.0,0.00013971,2]
[333873489,1722586240000,-532.39,0.00013972,2]
[333873491,1722586240010,-500.0,0.00013972,2]
[333873493,1722586240020,-500.0,0.00013972,2]
[333873495,1722586240030,-500.0,0.00013972,2]
[333873497,1722586240041,-577.92,0.00013972,2]
[333873499,1722586240051,-500.0,0.00013972,2]
[333873501,1722586240061,-500.0,0.00013972,2]
[333873503,1722586240071,-500.0,0.00013972,2]
[333873505,1722586240082,-500.0,0.00013972,2]
[333873507,1722586240092,-500.0,0.00013972,2]
[333873509,1722586240102,-500.0,0.00013972,2]
[333873511,1722586240112,-500.0,0.00013972,2]
[333873513,1722586240122,-500.0,0.00013972,2]
[333873515,1722586240132,-619.93663074,0.00013972,2]
[333873517,1722586240145,-500.0,0.00013972,2]
[333873520,1722586240156,-500.0,0.00013972,2]
[333873521,1722586240166,-500.0,0.00013972,2]
[333873522,1722586240177,-500.0,0.00013972,2]
[333873524,1722586240189,-500.0,0.00013972,2]
[333873525,1722586240201,-500.0,0.00013972,2]
[333873526,1722586240212,-500.0,0.00013972,2]
[333873527,1722586240226,-442.87724593,0.00013972,2]
[333873528,1722586240627,-500.0,0.00013698,2]
[333873529,1722586240642,-57.12275407,0.00013972,2]
[333873530,1722586240653,-500.0,0.00013972,2]
[333873531,1722586240663,-1703.06,0.00013972,2]
[333873532,1722586240673,-500.0,0.00013972,2]
[333873533,1722586240683,-500.0,0.00013972,2]
[333873534,1722586240693,-681.41,0.00013972,2]
[333873535,1722586240705,-500.0,0.00013972,2]
[333873536,1722586240715,-500.0,0.00013972,2]
[333873537,1722586240724,-265.68399383,0.00013972,2]
[333873538,1722586240735,-500.0,0.00013972,2]
[333873539,1722586240746,-500.0,0.00013972,2]
[333873540,1722586240758,-500.0,0.00013972,2]
[333873541,1722586240769,-767.05,0.00013972,2]
[333873542,1722586240779,-1485.79,0.00013972,2]
[333873543,1722586240790,-500.0,0.00013972,2]
[333873544,1722586240801,-500.0,0.00013972,2]
[333873545,1722586240812,-500.0,0.00013972,2]
[333873546,1722586240823,-500.0,0.00013972,2]
[333873547,1722586240834,-500.0,0.00013972,2]
[333873548,1722586240844,-775.88,0.00013972,2]
[333873549,1722586240853,-500.0,0.00013972,2]
[333873550,1722586240863,-269.7166038,0.00013972,2]